fUST/lending_fUST_20251215
["ID","MTS","AMOUNT","RATE_DAILY","PERIOD"]
[398487559,1765735768260,-10000.01,0.0001589,2]
[398487560,1765735768412,-10000.01,0.0001589,2]
[398487561,1765735774701,-10000.01,0.0001589,2]
[398487562,1765735775320,-10000.01,0.0001589,2]
[398487563,1765735777847,-10000.01,0.0001589,2]
[398487564,1765735778056,-10000.01,0.0001589,2]
[398487565,1765735778193,-10000.01,0.0001589,2]
[398487566,1765735778322,-10000.01,0.0001589,2]
[398487567,1765735778485,-10000.01,0.0001589,2]
[398487568,1765735780842,-10000.01,0.0001589,2]
[398487571,1765735789927,-10000.01,0.0001589,2]
[398487573,1765735790062,-10000.01,0.0001589,2]
[398487574,1765735790190,-10000.01,0.0001589,2]
[398487576,1765735790305,-10000.01,0.0001589,2]
[398487578,1765735790436,-10000.01,0.0001589,2]
[398487579,1765735790557,-10000.01,0.0001589,2]
[398487581,1765735802218,152.68,0.00012,2]
[398487582,1765735802675,152.68,0.00012,2]
[398487583,1765735802901,152.68,0.000121,2]
[398487584,1765735803088,152.68,0.000121,2]
[398487585,1765735803417,152.68,0.000122,2]
[398487586,1765735803682,152.68,0.000122,2]
[398487587,1765735803963,152.68,0.000123,2]
[398487588,1765735804234,152.68,0.000123,2]
[398487589,1765735804522,152.68,0.000124,2]
[398487590,1765735804888,202.80395574,0.00012392,2]
[398487591,1765735804931,152.68,0.000124,2]
[398487592,1765735805271,152.68,0.000125,2]
[398487593,1765735805598,152.68,0.000125,2]
[398487594,1765735805929,152.68,0.000126,2]
[398487595,1765735806201,152.68,0.000126,2]
[398487596,1765735806487,152.68,0.000127,2]
[398487597,1765735806943,152.68,0.000127,2]
[398487598,1765735807327,152.68,0.000127,2]
[398487599,1765735807409,152.68,0.000128,2]
[398487600,1765735807584,302.37,9.739e-05,2]
[398487601,1765735807969,152.68,0.000128,2]
[398487602,1765735808083,604.74,0.00010625,2]
[398487603,1765735808476,907.11,0.0001151,2]
[398487604,1765735808892,1209.48,0.00012395,2]
[398487605,1765735808926,152.68,0.000129,2]
[398487606,1765735809214,152.68,0.000129,2]
[398487607,1765735809299,1511.85,0.00013281,2]
[398487608,1765735809483,152.68,0.00013,2]
[398487609,1765735809760,152.68,0.00013,2]
[398487610,1765735810189,152.68,0.000131,2]
[398487611,1765735810457,152.68,0.000131,2]
[398487612,1765735810738,152.68,0.000132,2]
[398487613,1765735811017,152.68,0.000132,2]
[398487614,1765735811290,152.68,0.000133,2]
[398487615,1765735811564,152.68,0.000133,2]
[398487616,1765735811842,152.68,0.000134,2]
[398487617,1765735812116,152.68,0.000134,2]
[398487618,1765735812388,152.68,0.000134,2]
[398487636,1765735832552,-152.68,0.000135,2]
[398487637,1765735832561,-152.68,0.000135,2]
[398487638,1765735832571,-19.14046152,0.000136,2]
[398487750,1765735839134,-133.53953848,0.000136,2]
[398487751,1765735839163,-152.68,0.000136,2]
[398487752,1765735839188,-500.0,0.00013699,2]
[398487753,1765735839216,-152.68,0.000137,2]
[398487754,1765735839246,-152.68,0.000137,2]
[398487755,1765735839274,-152.68,0.000138,2]
[398487756,1765735839313,-152.68,0.000138,2]
[398487757,1765735839343,-152.68,0.000139,2]
[398487758,1765735839370,-152.68,0.000139,2]
[398487759,1765735839397,-152.68,0.00014,2]
[398487760,1765735839426,-152.68,0.00014,2]
[398487761,1765735839455,-1814.21,0.00014166,2]
[398487762,1765735839481,-1000.0,0.00014247,2]
[398487763,1765735839846,-2116.58,0.00015051,2]
[398487766,1765735840291,-356.27092304,0.0001532,2]
[398487767,1765735840375,-5766.85,0.0001532,2]
[398487768,1765735840442,-10000.01,0.0001532,2]
[398487769,1765735840552,-10000.01,0.0001532,2]
[398487770,1765735840593,-10000.01,0.0001532,2]
[398487771,1765735840613,-10000.01,0.0001532,2]
[398487772,1765735840638,-10000.01,0.0001532,2]
[398487773,1765735840698,-10000.01,0.0001532,2]
[398487774,1765735840722,-10000.01,0.0001532,2]
[398487775,1765735840796,-23876.80907696,0.0001532,2]
[398487776,1765735840805,-300.0,0.00015889,2]
[398487777,1765735840813,-21344.35633942,0.0001589,2]
[398488056,1765735843579,-1180.89894074,0.0001589,2]
[398488058,1765735843591,-1046.32681666,0.0001589,2]
[398488071,1765735843697,-4131.12882622,0.0001589,2]
[398488191,1765735853126,240.84966148,0.00019,120]
[398488192,1765735853381,300.0,0.00014882,120]
[398488193,1765735855149,300.0,0.00014882,120]
[398488194,1765735856838,300.0,0.00014882,120]
[398488195,1765735858377,212.22369783,0.00015319,2]
[398488196,1765735859507,2041.28709976,0.00018715,120]
[398488197,1765735859556,500.0,0.00015319,2]
[398488198,1765735859587,500.0,0.00015319,2]
[398488199,1765735859628,500.0,0.00015319,2]
[398488200,1765735859662,500.0,0.00015319,2]
[398488201,1765735859690,450.15916011,0.00015319,2]
[398488202,1765735859722,500.0,0.00015319,2]
[398488203,1765735859753,500.0,0.00015319,2]
[398488204,1765735859792,509.92288074,0.00015319,2]
[398488205,1765735859822,500.0,0.00015319,2]
[398488206,1765735859850,500.0,0.00015319,2]
[398488207,1765735859878,500.0,0.00015319,2]
[398488208,1765735859924,500.0,0.00015319,2]
[398488209,1765735859951,500.0,0.00015319,2]
[398488210,1765735859980,500.0,0.00015319,2]
[398488211,1765735860032,500.0,0.00015319,2]
[398488212,1765735860058,163.77836539,0.00015319,2]
[398488213,1765735860090,605.52589529,0.00015319,2]
[398488214,1765735860128,468.19670254,0.00015319,2]
[398488215,1765735860171,500.0,0.00015319,2]
[398488216,1765735860241,500.0,0.00015319,2]
[398488217,1765735860307,302.42699593,0.00015319,2]
[398488218,1765735860332,197.57300407,0.00015319,2]
[398488219,1765735860388,500.0,0.00015319,2]
[398488220,1765735860691,500.0,0.00015319,2]
[398488221,1765735862040,150.56,0.00012,2]
[398488222,1765735862999,150.56,0.000121,2]
[398488223,1765735863356,150.56,0.000122,2]
[398488224,1765735863693,150.56,0.000122,2]
[398488225,1765735864000,500.0,0.00013699,2]
[398488226,1765735864057,150.56,0.000123,2]
[398488227,1765735864105,639.80698152,0.00014795,2]
[398488228,1765735864204,1000.0,0.00014247,2]
[398488229,1765735864401,150.56,0.000124,2]
[398488230,1765735864541,500.0,0.00013273,2]
[398488231,1765735864600,1000.0,0.00013821,2]
[398488232,1765735864653,1500.0,0.00014368,2]
[398488233,1765735864703,150.56,0.000125,2]
[398488234,1765735864729,1175.3118198,0.00014916,2]
[398488235,1765735865006,150.56,0.000126,2]
[398488236,1765735865353,150.56,0.000126,2]
[398488237,1765735865733,150.56,0.000127,2]
[398488238,1765735866076,150.56,0.000128,2]
[398488239,1765735866487,150.56,0.000129,2]
[398488240,1765735866869,150.56,0.00013,2]
[398488241,1765735867301,500.0,0.00015319,2]
[398488242,1765735867334,30.03819461,0.00015319,2]
[398488243,1765735867356,412.63245825,0.00015319,2]
[398488244,1765735867386,500.0,0.00015319,2]
[398488245,1765735867435,500.0,0.00015319,2]
[398488246,1765735867463,547.5,0.00015319,2]
[398488247,1765735873122,500.0,0.00013273,2]
[398488248,1765735873170,1000.0,0.00013821,2]
[398488249,1765735873464,1500.0,0.00014368,2]
[398488250,1765735875567,514.47464372,0.00015319,2]
[398488251,1765735877243,500.0,0.00013699,2]
[398488252,1765735877299,1000.0,0.00014247,2]
[398488253,1765735877339,514.47464372,0.00015319,2]
[398488254,1765735880525,150.56,0.00013,2]
[398488255,1765735880711,150.56,0.000131,2]
[398488256,1765735880834,150.56,0.000132,2]
[398488257,1765735881103,150.56,0.000133,2]
[398488258,1765735881374,150.56,0.000134,2]
[398488259,1765735881647,150.56,0.000134,2]
[398488260,1765735881974,150.56,0.000135,2]
[398488261,1765735882199,150.56,0.000136,2]
[398488262,1765735882467,150.56,0.000137,2]
[398488263,1765735882786,150.56,0.000138,2]
[398488264,1765735883060,150.56,0.000138,2]
[398488265,1765735883349,150.56,0.000139,2]
[398488266,1765735883721,500.0,0.00013273,2]
[398488267,1765735883759,204.20825431,0.00013821,2]
[398488268,1765735883781,795.79174569,0.00013821,2]
[398488269,1765735883831,1523.5855429,0.00014368,2]
[398488270,1765735885081,159.869457,0.00015319,2]
[398488271,1765735885736,894.56,8.914e-05,2]
[398488272,1765735886141,1789.11,9.725e-05,2]
[398488273,1765735886583,2683.67,0.00010535,2]
[398488274,1765735887017,2153.42325441,0.00011345,2]
[398488275,1765735887040,1424.79674559,0.00011345,2]
[398488276,1765735887457,4472.78,0.00012156,2]
[398488277,1765735887683,500.0,0.00013273,2]
[398488278,1765735887746,1000.0,0.00013821,2]
[398488279,1765735887803,1500.0,0.00014368,2]
[398488280,1765735887868,1102.43325441,0.00012966,2]
[398488281,1765735887891,4264.90674559,0.00012966,2]
[398488282,1765735888698,6261.89,0.00013776,2]
[398488283,1765735889074,3738.12,0.00014587,2]
[398488284,1765735889342,3418.33,0.00014587,2]
[398488285,1765735889477,6581.68,0.00015397,2]
[398488286,1765735889500,1469.32,0.00015397,2]
[398488287,1765735904421,176.57,0.0001,2]
[398488288,1765735904518,500.0,0.00015238,2]
[398488310,1765735925840,180.0,0.00016338,120]
[398488311,1765735928115,178.39710808,0.00016338,120]
[398488312,1765735930434,238.93140539,0.00017972,120]
[398488313,1765735930898,10000.0,0.000138,2]
[398488314,1765735945311,0.01,0.00013699,2]
[398488315,1765735945332,499.99,0.00013699,2]
[398488317,1765735963039,382.22,9.31e-05,2]
[398488318,1765735963758,764.44,0.00010157,2]
[398488319,1765735963870,1146.66,0.00011003,2]
[398488320,1765735964229,1528.88,0.0001185,2]
[398488322,1765735964637,1911.1,0.00012696,2]
[398488323,1765735965017,2293.32,0.00013543,2]
[398488325,1765735983958,500.0,0.00013699,2]
[398488326,1765735986973,500.0,0.00013273,2]
[398488327,1765735991057,473.4,0.00013273,2]
[398488328,1765735991078,26.6,0.00013273,2]
[398488329,1765735991241,500.0,0.00013273,2]
[398488330,1765735998474,300.0,0.00013673,2]
[398488331,1765735999976,500.0,0.00013699,2]
[398488332,1765736002323,179.42081366,0.00012678,2]
[398488333,1765736006273,500.0,0.00013699,2]
[398488334,1765736013197,500.0,0.00013273,2]
[398488335,1765736040571,280.06,9.31e-05,2]
[398488336,1765736040955,560.12,0.00010156,2]
[398488337,1765736041430,840.19,0.00011002,2]
[398488338,1765736042091,1120.25,0.00011849,2]
[398488339,1765736042299,1400.31,0.00012695,2]
[398488340,1765736042655,1680.37,0.00013541,2]
[398488341,1765736044974,500.0,0.00013699,2]
[398488342,1765736050831,1112.68918634,0.000138,2]
[398488343,1765736050852,1633.31081366,0.000138,2]
[398488345,1765736109079,500.0,0.00013699,2]
[398488346,1765736114709,160.0,5.2e-07,2]
[398488347,1765736115747,160.0,5.2e-07,2]
[398488348,1765736116940,160.0,5.2e-07,2]
[398488349,1765736118000,80.0,5.2e-07,2]
[398488350,1765736118023,80.0,5.2e-07,2]
[398488351,1765736119046,205.21,9.32e-05,2]
[398488352,1765736119112,160.0,5.2e-07,2]
[398488353,1765736119432,410.42,0.00010167,2]
[398488354,1765736119965,615.63,0.00011014,2]
[398488355,1765736120168,160.0,5.2e-07,2]
[398488356,1765736120418,820.84,0.00011861,2]
[398488358,1765736120965,1026.05,0.00012708,2]
[398488359,1765736121191,160.0,5.2e-07,2]
[398488360,1765736121235,1231.26,0.00013556,2]
[398488361,1765736122215,160.0,5.2e-07,2]
[398488362,1765736123426,160.0,5.2e-07,2]
[398488363,1765736124461,160.0,5.2e-07,2]
[398488364,1765736125538,500.0,0.00013273,2]
[398488365,1765736125583,500.0,0.00013821,2]
[398488366,1765736164269,254.0,0.000138,2]
[398488367,1765736164642,500.0,0.00013699,2]
[398488368,1765736205717,-1783.281692,0.00014866,2]
[398488369,1765736211829,150.36,8.913e-05,2]
[398488370,1765736212226,300.72,9.723e-05,2]
[398488371,1765736212628,451.09,0.00010534,2]
[398488372,1765736213037,601.45,0.00011344,2]
[398488373,1765736213445,751.81,0.00012154,2]
[398488374,1765736213886,902.17,0.00012964,2]
[398488375,1765736214989,1052.54,0.00013775,2]
[398488376,1765736215083,1202.9,0.00014585,2]
[398488377,1765736221850,-243.74491966,0.00015039,2]
[398488378,1765736224601,500.0,0.00013699,2]
[398488379,1765736237743,-500.0,0.00015212,2]
[398488381,1765736244489,555.004142,0.00013699,2]
[398488382,1765736251165,500.0,0.00013273,2]
[398488383,1765736251290,500.0,0.00013821,2]
[398488384,1765736253400,-1353.26,0.00015395,2]
[398488385,1765736286903,500.0,0.00013273,2]
[398488386,1765736286958,500.0,0.00013821,2]
[398488387,1765736288471,150.0,9.102e-05,2]
[398488388,1765736288951,150.0,9.929e-05,2]
[398488389,1765736289282,192.74,0.00010756,2]
[398488390,1765736289638,256.98,0.00011584,2]
[398488391,1765736290058,321.23,0.00012411,2]
[398488392,1765736290471,385.47,0.00013239,2]
[398488393,1765736290893,449.72,0.00014066,2]
[398488394,1765736291291,513.97,0.00014893,2]
[398488395,1765736293430,-151.0,0.00015397,2]
[398488396,1765736293459,-179.36038715,0.00015397,2]
[398488397,1765736296657,-578.21,0.00015721,2]
[398488398,1765736312110,-350.65524305,0.00015737,2]
[398488399,1765736328391,500.0,0.00015212,2]
[398488400,1765736343293,-597.0,0.00015794,2]
[398488401,1765736344626,500.0,0.00013699,2]
[398488402,1765736347368,500.0,0.00013273,2]
[398488403,1765736347426,500.0,0.00013821,2]
[398488404,1765736347653,500.0,0.00013273,2]
[398488405,1765736347698,500.0,0.00013821,2]
[398488406,1765736353771,500.0,0.00013821,2]
[398488407,1765736353801,500.0,0.00013273,2]
[398488408,1765736353891,500.0,0.00013273,2]
[398488409,1765736353950,500.0,0.00013821,2]
[398488410,1765736355067,500.0,0.00013273,2]
[398488411,1765736355134,500.0,0.00013821,2]
[398488412,1765736362871,150.0,9.474e-05,2]
[398488413,1765736363280,150.0,0.00010335,2]
[398488414,1765736363921,150.0,0.00011197,2]
[398488415,1765736364332,150.0,0.00012058,2]
[398488416,1765736364820,150.0,0.00012919,2]
[398488417,1765736365214,156.51,0.0001378,2]
[398488418,1765736365654,182.6,0.00014642,2]
[398488419,1765736366493,208.68,0.00015503,2]
[398488420,1765736370096,500.0,0.00013821,2]
[398488421,1765736370146,500.0,0.00013273,2]
[398488423,1765736385804,802.1692279,0.00015525,5]
[398488426,1765736432408,150.0,9.468e-05,2]
[398488427,1765736432813,150.0,0.00010329,2]
[398488428,1765736433220,150.0,0.00011189,2]
[398488429,1765736433635,150.0,0.0001205,2]
[398488430,1765736434665,150.0,0.00012911,2]
[398488433,1765736526552,233.06248403,0.00015809,2]
[398488434,1765736577738,2000.0,0.00014,30]
[398488435,1765736579339,157.27439947,0.00015781,2]
[398488436,1765736583447,500.0,0.00013273,2]
[398488437,1765736583526,500.0,0.00013821,2]
[398488438,1765736586117,500.0,0.00013273,2]
[398488439,1765736586179,500.0,0.00013821,2]
[398488449,1765736722803,4859.6731165,0.00014915,2]
[398488450,1765736722828,10000.01,0.00014915,2]
[398488451,1765736722851,10000.01,0.00014915,2]
[398488452,1765736722873,10000.01,0.00014915,2]
[398488453,1765736722895,9102.0527963,0.00014915,2]
[398488457,1765736763712,500.0,0.00013699,2]
[398488458,1765736782131,397.9572037,0.0001579,2]
[398488459,1765736782155,10000.01,0.0001579,2]
[398488460,1765736782178,10000.01,0.0001579,2]
[398488461,1765736782202,10000.01,0.0001579,2]
[398488462,1765736782226,10000.01,0.0001579,2]
[398488463,1765736782249,10000.01,0.0001579,2]
[398488464,1765736782274,10000.01,0.0001579,2]
[398488465,1765736782298,10000.01,0.0001579,2]
[398488466,1765736782326,10000.01,0.0001579,2]
[398488467,1765736782352,10000.01,0.0001579,2]
[398488468,1765736822859,-300.0,0.00015789,2]
[398488469,1765736822887,-261.9086199,0.00015789,2]
[398488470,1765736822916,-209.01038363,0.00015789,2]
[398488471,1765736822942,-163.13296695,0.00015789,2]
[398488472,1765736822973,-178.39176614,0.00015789,2]
[398488473,1765736823002,-227.5,0.00015789,2]
[398488474,1765736823031,-445.54698675,0.00015789,2]
[398488475,1765736824161,500.0,0.00013699,2]
[398488476,1765736824296,1000.0,0.00014247,2]
[398488477,1765736824341,1139.80698152,0.00014795,2]
[398488483,1765736858516,-7781.40694476,0.0001579,2]
[398488484,1765736858710,-10000.01,0.0001579,2]
[398488485,1765736861377,-10000.01,0.0001579,2]
[398488489,1765736962211,500.0,0.00013699,2]
[398488490,1765736971294,500.0,0.00013273,2]
[398488491,1765736971321,1000.0,0.00013821,2]
[398488492,1765736992967,-1000.0,0.00014247,2]
[398488493,1765736993755,201.0,5.2e-07,2]
[398488494,1765736994786,201.0,5.2e-07,2]
[398488524,1765737031732,-1500.0,0.00014368,2]
[398488525,1765737031742,-999.0,0.00014861,2]
[398488526,1765737031752,-500.0,0.00015138,2]
[398488527,1765737031762,-300.0,0.00015319,2]
[398488528,1765737031772,-41424.58090477,0.0001532,2]
[398488529,1765737031784,-1043.77747175,0.0001532,2]
[398488530,1765737031796,-1057.28794579,0.0001532,2]
[398488532,1765737031807,-466.12813108,0.0001532,2]
[398488534,1765737031819,-585.50860064,0.0001532,2]
[398488554,1765737037788,-225.0,0.00015319,2]
[398488556,1765737037798,-637.56413436,0.00015319,2]
[398488558,1765737037808,-161.34029698,0.00015319,2]
[398488560,1765737037818,-7386.41826988,0.0001532,2]
[398488563,1765737037843,-3687.66744814,0.0001532,2]
[398488564,1765737037854,-2326.24435221,0.0001532,2]
[398488565,1765737037864,-3257.86920441,0.0001532,2]
[398488566,1765737037875,-1393.48827225,0.0001532,2]
[398488567,1765737037886,-711.23091884,0.0001532,2]
[398488568,1765737037897,-36659.79848024,0.0001532,2]
[398488569,1765737037906,-417.73456906,0.00015778,2]
[398488570,1765737037919,-165.10627698,0.00015781,2]
[398488571,1765737037928,-1589.28766274,0.00015781,2]
[398488572,1765737037938,-4868.91533773,0.0001579,2]
[398488618,1765737039984,-690.42,0.0001579,2]
[398488621,1765737039997,-42232.16734003,0.0001579,2]
[398488623,1765737040010,-8980.05988714,0.0001579,2]
[398488627,1765737040043,-10980.60204282,0.0001579,2]
[398488630,1765737040054,-658.05590408,0.0001579,2]
[398488715,1765737042862,-315.98676429,0.0001579,2]
[398489000,1765737045940,-436.36671295,0.0001579,2]
[398489116,1765737074320,425.86985941,0.00013273,2]
[398489117,1765737075901,500.0,0.00013273,2]
[398489118,1765737080499,300.0,0.00013673,2]
[398489119,1765737082572,500.0,0.00013699,2]
[398489120,1765737085420,500.0,0.00013273,2]
[398489121,1765737087332,500.0,0.00013699,2]
[398489122,1765737091408,500.0,0.00013273,2]
[398489123,1765737092212,500.0,0.00013273,2]
[398489125,1765737150238,-800.0,0.00015,30]
[398489126,1765737150265,-500.0,0.00015088,2]
[398489127,1765737150291,-202.284331,0.00015319,2]
[398489128,1765737150318,-275.70565434,0.00015319,2]
[398489129,1765737150346,-241.10287671,0.00015554,2]
[398489130,1765737150373,-500.0,0.00015763,2]
[398489131,1765737150400,-500.0,0.00015763,2]
[398489132,1765737150427,-226.77402872,0.00015763,2]
[398489133,1765737150454,-308.985,0.00015789,2]
[398489134,1765737150480,-300.0,0.00015789,2]
[398489135,1765737156477,-6162.44635905,0.0001579,2]
[398489136,1765737159764,-2853.68177631,0.00015736,2]
[398489137,1765737159796,-192.99395804,0.00015789,2]
[398489138,1765737160103,-3906.6585313,0.0001579,2]
[398489139,1765737184014,1000.0,0.00014247,2]
[398489140,1765737184066,500.0,0.00013699,2]
[398489141,1765737188256,500.0,0.00013699,2]
[398489142,1765737188431,500.0,0.00013273,2]
[398489143,1765737188489,234.81131868,0.00013821,2]
[398489144,1765737192366,500.0,0.00013273,2]
[398489145,1765737195056,500.0,0.00013273,2]
[398489146,1765737195104,1000.0,0.00013821,2]
[398489147,1765737201237,150.0,8.984e-05,2]
[398489148,1765737201305,500.0,0.00013699,2]
[398489149,1765737201341,784.64455431,0.00014247,2]
[398489150,1765737201418,150.0,9.801e-05,2]
[398489151,1765737201822,150.0,0.00010617,2]
[398489152,1765737201935,500.0,0.00013699,2]
[398489153,1765737201989,500.0,0.00014247,2]
[398489154,1765737202252,150.0,0.00011434,2]
[398489155,1765737202702,150.0,0.00012251,2]
[398489156,1765737203039,150.0,0.00013068,2]
[398489157,1765737203468,150.0,0.00013884,2]
[398489158,1765737204428,500.0,0.00013273,2]
[398489159,1765737204480,976.4144571,0.00013821,2]
[398489160,1765737207021,454.13966991,0.00013699,2]
[398489161,1765737207043,45.86033009,0.00013699,2]
[398489162,1765737207080,1000.0,0.00014247,2]
[398489163,1765737210029,182.02148418,8.228e-05,2]
[398489165,1765737211192,500.0,0.00013273,2]
[398489166,1765737211628,500.0,0.00013821,2]
[398489167,1765737246900,500.0,0.00013273,2]
[398489168,1765737247466,500.0,0.00013273,2]
[398489169,1765737249629,500.0,0.00013699,2]
[398489170,1765737249688,500.0,0.00014247,2]
[398489171,1765737268541,150.0,8.936e-05,2]
[398489173,1765737307131,500.0,0.00013699,2]
[398489174,1765737333604,500.0,0.00013699,2]
[398489175,1765737333636,461.17801766,0.00014247,2]
[398489176,1765737367237,500.0,0.00013699,2]
[398489179,1765737426058,500.0,0.00013273,2]
[398489180,1765737426958,500.0,0.00013273,2]
[398489182,1765737483741,178.43,9.99e-05,2]
[398489183,1765737483859,178.42,9.99e-05,2]
[398489184,1765737543216,500.0,0.00013699,2]
[398489185,1765737604543,500.0,0.00013273,2]
[398489186,1765737606492,500.0,0.00013699,2]
[398489187,1765737608061,-500.0,0.00014247,2]
[398489191,1765737664304,550.0059967,0.00013699,2]
[398489205,1765738160498,150.0,9.539e-05,2]
[398489206,1765738160923,150.0,0.00010407,2]
[398489207,1765738161344,150.0,0.00011274,2]
[398489208,1765738161782,199.62,0.00012141,2]
[398489209,1765738163668,249.52,0.00013008,2]
[398489210,1765738172956,299.43,0.00013875,2]
[398489227,1765738231907,-1536.86753285,0.0001471,2]
[398489229,1765738231919,-2653.06756959,0.0001471,2]
[398489240,1765738232006,-3240.50397286,0.0001471,2]
[398489242,1765738232016,-349.33,0.00014743,2]
[398489244,1765738232024,-236.28081918,0.00014791,2]
[398489246,1765738232034,-300.0,0.00015035,2]
[398489248,1765738232043,-500.0,0.00015036,2]
[398489250,1765738232053,-300.0,0.00015296,2]
[398489252,1765738232062,-1200.0,0.00015296,2]
[398489254,1765738232071,-222.03870231,0.0001531,7]
[398489256,1765738232080,-895.26455146,0.0001531,7]
[398489258,1765738232089,-597.15230557,0.0001531,7]
[398489260,1765738232098,-800.0,0.00015311,2]
[398489262,1765738232108,-500.0,0.00015319,2]
[398489264,1765738232116,-500.0,0.00015319,2]
[398489266,1765738232126,-500.0,0.00015319,2]
[398489268,1765738232135,-500.0,0.00015319,2]
[398489270,1765738232144,-40533.84360696,0.0001532,2]
[398489272,1765738232154,-475.0,0.00015397,2]
[398489274,1765738232163,-475.0,0.00015397,2]
[398489276,1765738232172,-475.0,0.00015397,2]
[398489277,1765738232182,-475.0,0.00015397,2]
[398489279,1765738232191,-475.0,0.00015397,2]
[398489281,1765738232201,-475.0,0.00015397,2]
[398489283,1765738232210,-475.0,0.00015397,2]
[398489285,1765738232220,-475.0,0.00015397,2]
[398489287,1765738232229,-475.0,0.00015397,2]
[398489289,1765738232241,-475.0,0.00015397,2]
[398489291,1765738232250,-475.0,0.00015397,2]
[398489293,1765738232260,-475.0,0.00015397,2]
[398489295,1765738232269,-475.0,0.00015397,2]
[398489297,1765738232279,-475.0,0.00015397,2]
[398489299,1765738232288,-475.0,0.00015397,2]
[398489301,1765738232297,-475.0,0.00015397,2]
[398489303,1765738232307,-475.0,0.00015397,2]
[398489305,1765738232316,-475.0,0.00015397,2]
[398489307,1765738232325,-475.0,0.00015397,2]
[398489309,1765738232335,-206.43,0.00015397,2]
[398489311,1765738232344,-1000.0,0.00015501,5]
[398489313,1765738232353,-3330.2102058,0.00015547,2]
[398489315,1765738232362,-500.0,0.00015554,2]
[398489317,1765738232371,-475.0,0.00015554,2]
[398489319,1765738232380,-475.0,0.00015554,2]
[398489321,1765738232389,-475.0,0.00015554,2]
[398489323,1765738232398,-475.0,0.00015554,2]
[398489325,1765738232407,-475.0,0.00015554,2]
[398489327,1765738232416,-475.0,0.00015554,2]
[398489329,1765738232426,-475.0,0.00015554,2]
[398489331,1765738232435,-475.0,0.00015554,2]
[398489333,1765738232444,-475.0,0.00015554,2]
[398489335,1765738232454,-475.0,0.00015554,2]
[398489337,1765738232464,-475.0,0.00015554,2]
[398489339,1765738232473,-475.0,0.00015554,2]
[398489341,1765738232482,-475.0,0.00015554,2]
[398489343,1765738232494,-475.0,0.00015554,2]
[398489345,1765738232504,-475.0,0.00015554,2]
[398489347,1765738232515,-475.0,0.00015554,2]
[398489349,1765738232532,-475.0,0.00015554,2]
[398489351,1765738232541,-475.0,0.00015554,2]